[Event "*** Titled Tuesday Blitz"]
[Site "Chess.com"]
[Date "2018.12.04"]
[Round "2"]
[White "GMKrikor"]
[Black "Gabrielian_Artur"]
[Result "1-0"]
[WhiteElo "2675"]
[BlackElo "2709"]
[TimeControl "180+2"]
[EndTime "13:20:30 PST"]
[Termination "GMKrikor won by resignation"]

1. e4 {[%clk 0:03:01.9]} 1... c5 {[%clk 0:03:00.5]} 2. Nf3 {[%clk 0:03:02.7]}
2... d6 {[%clk 0:03:01]} 3. d4 {[%clk 0:03:04]} 3... cxd4 {[%clk 0:03:02.2]} 4.
Nxd4 {[%clk 0:03:05.9]} 4... Nf6 {[%clk 0:03:03]} 5. Nc3 {[%clk 0:03:07.6]} 5...
Nc6 {[%clk 0:03:04.2]} 6. Bg5 {[%clk 0:03:08.2]} 6... e6 {[%clk 0:03:05.3]} 7.
Qd2 {[%clk 0:03:09.4]} 7... a6 {[%clk 0:03:06.6]} 8. O-O-O {[%clk 0:03:10.5]}
8... Bd7 {[%clk 0:03:07.6]} 9. f3 {[%clk 0:03:11.7]} 9... Nxd4 {[%clk 0:03:06]}
10. Qxd4 {[%clk 0:03:12.1]} 10... Be7 {[%clk 0:03:07.4]} 11. Kb1 {[%clk
0:03:07.7]} 11... b5 {[%clk 0:03:01]} 12. Be3 {[%clk 0:03:05.3]} 12... O-O
{[%clk 0:02:46.1]} 13. g4 {[%clk 0:02:55.4]} 13... Rb8 {[%clk 0:02:38.6]} 14. g5
{[%clk 0:02:51.2]} 14... Nh5 {[%clk 0:02:32.7]} 15. Qd2 {[%clk 0:02:46]} 15...
b4 {[%clk 0:02:29.7]} 16. Ne2 {[%clk 0:02:47.1]} 16... e5 {[%clk 0:02:09.6]} 17.
Ng3 {[%clk 0:02:28.6]} 17... Nf4 {[%clk 0:02:08.7]} 18. h4 {[%clk 0:02:30]}
18... a5 {[%clk 0:02:02.7]} 19. Bxf4 {[%clk 0:02:18.2]} 19... exf4 {[%clk
0:02:02.9]} 20. Nf5 {[%clk 0:02:19.9]} 20... Be6 {[%clk 0:01:29.3]} 21. Qd4
{[%clk 0:01:33.7]} 21... Bxf5 {[%clk 0:01:10.3]} 22. exf5 {[%clk 0:01:35.6]}
22... a4 {[%clk 0:01:04.7]} 23. f6 {[%clk 0:01:34]} 23... gxf6 {[%clk
0:01:05.4]} 24. Bd3 {[%clk 0:01:35.3]} 24... d5 {[%clk 0:00:41.1]} 25. Qxf4
{[%clk 0:01:34]} 25... Qd7 {[%clk 0:00:09.2]} 26. gxf6 {[%clk 0:01:32.7]} 1-0

[Event "*** Titled Tuesday Blitz"]
[Site "Chess.com"]
[Date "2018.12.04"]
[Round "2"]
[White "VerdeNotte"]
[Black "Markov_Mikhail"]
[Result "1-0"]
[WhiteElo "2839"]
[BlackElo "2597"]
[TimeControl "180+2"]
[EndTime "13:20:47 PST"]
[Termination "VerdeNotte won by resignation"]

1. Nf3 {[%clk 0:03:01.9]} 1... Nf6 {[%clk 0:03:00]} 2. b3 {[%clk 0:03:02.8]}
2... e6 {[%clk 0:03:00.2]} 3. Bb2 {[%clk 0:03:03.8]} 3... d5 {[%clk 0:03:01.8]}
4. g3 {[%clk 0:03:02.8]} 4... Be7 {[%clk 0:03:03]} 5. Bg2 {[%clk 0:03:04.2]}
5... O-O {[%clk 0:03:04.5]} 6. O-O {[%clk 0:03:03.9]} 6... Nbd7 {[%clk 0:03:06]}
7. c4 {[%clk 0:03:04.5]} 7... c5 {[%clk 0:03:07.2]} 8. d4 {[%clk 0:03:03.1]}
8... b6 {[%clk 0:03:08]} 9. cxd5 {[%clk 0:03:00.8]} 9... exd5 {[%clk 0:03:09.2]}
10. Nh4 {[%clk 0:03:01.9]} 10... Bb7 {[%clk 0:03:09.6]} 11. Nf5 {[%clk
0:03:02.7]} 11... Re8 {[%clk 0:03:11]} 12. Nxe7+ {[%clk 0:03:03.4]} 12... Qxe7
{[%clk 0:03:11.8]} 13. Nc3 {[%clk 0:03:04.3]} 13... Ne4 {[%clk 0:03:06.1]} 14.
dxc5 {[%clk 0:02:56.5]} 14... Nxc3 {[%clk 0:02:52.4]} 15. Bxc3 {[%clk
0:02:58.4]} 15... Nxc5 {[%clk 0:02:53.1]} 16. Re1 {[%clk 0:02:56.3]} 16... Rad8
{[%clk 0:02:48.6]} 17. e3 {[%clk 0:02:49.5]} 17... Ne4 {[%clk 0:02:38.7]} 18.
Bb2 {[%clk 0:02:49.6]} 18... Rc8 {[%clk 0:02:36.3]} 19. Qd4 {[%clk 0:02:47.7]}
19... Qf6 {[%clk 0:02:28]} 20. Qxf6 {[%clk 0:02:45.4]} 20... Nxf6 {[%clk
0:02:26.4]} 21. Rac1 {[%clk 0:02:34.4]} 21... Ne4 {[%clk 0:02:24.3]} 22. Bh3
{[%clk 0:02:35.4]} 22... Rc5 {[%clk 0:02:20.3]} 23. Bd4 {[%clk 0:02:31.7]} 23...
Rxc1 {[%clk 0:01:49.8]} 24. Rxc1 {[%clk 0:02:33.6]} 24... Re7 {[%clk 0:01:50.8]}
25. f3 {[%clk 0:02:18.1]} 25... Nd6 {[%clk 0:01:48.5]} 26. Kf2 {[%clk
0:02:16.4]} 26... f6 {[%clk 0:01:49.2]} 27. Bb2 {[%clk 0:02:15.3]} 27... Ne8
{[%clk 0:01:41.1]} 28. Ba3 {[%clk 0:02:14.1]} 28... Rc7 {[%clk 0:01:36.4]} 29.
Rxc7 {[%clk 0:02:08.1]} 29... Nxc7 {[%clk 0:01:36.9]} 30. Bd6 {[%clk 0:02:09.7]}
30... Ne8 {[%clk 0:01:29.2]} 31. Be6+ {[%clk 0:02:10.4]} 31... Kh8 {[%clk
0:01:30.7]} 32. Bb8 {[%clk 0:02:11.3]} 32... Bc6 {[%clk 0:01:22.4]} 33. Bxa7
{[%clk 0:02:11.4]} 33... b5 {[%clk 0:01:20.8]} 34. Bb8 {[%clk 0:02:07.8]} 34...
g6 {[%clk 0:01:21.7]} 35. Ke2 {[%clk 0:01:58.2]} 35... Kg7 {[%clk 0:01:22.8]}
36. Kd3 {[%clk 0:01:53.3]} 36... Kf8 {[%clk 0:01:11.2]} 37. Bh3 {[%clk
0:01:46.1]} 37... Ke7 {[%clk 0:01:09.5]} 38. Kd4 {[%clk 0:01:44.4]} 38... Ng7
{[%clk 0:01:03.8]} 39. Kc5 {[%clk 0:01:42.9]} 39... Be8 {[%clk 0:01:05.3]} 40.
Bd6+ {[%clk 0:01:41.9]} 40... Kd8 {[%clk 0:01:05.3]} 41. Kxd5 {[%clk 0:01:42.4]}
41... f5 {[%clk 0:01:06.7]} 42. Be5 {[%clk 0:01:41]} 42... Bf7+ {[%clk
0:01:00.9]} 43. Kc5 {[%clk 0:01:42]} 43... Ne6+ {[%clk 0:01:02]} 44. Kxb5 {[%clk
0:01:43.3]} 44... Ng5 {[%clk 0:01:02.9]} 45. Bf6+ {[%clk 0:01:44.1]} 1-0

[Event "*** Titled Tuesday Blitz"]
[Site "Chess.com"]
[Date "2018.12.04"]
[Round "2"]
[White "goodnigth"]
[Black "vugarrasulov"]
[Result "0-1"]
[WhiteElo "2353"]
[BlackElo "2784"]
[TimeControl "180+2"]
[EndTime "13:20:47 PST"]
[Termination "vugarrasulov won by resignation"]

1. e4 {[%clk 0:02:59.8]} 1... c5 {[%clk 0:03:00.6]} 2. Nf3 {[%clk 0:03:00.5]}
2... d6 {[%clk 0:03:02]} 3. d4 {[%clk 0:03:02.1]} 3... cxd4 {[%clk 0:03:03.9]}
4. Nxd4 {[%clk 0:03:03.7]} 4... Nf6 {[%clk 0:03:05.2]} 5. Nc3 {[%clk 0:03:04.4]}
5... Nc6 {[%clk 0:03:06.8]} 6. Be2 {[%clk 0:03:04.7]} 6... g6 {[%clk 0:03:05.5]}
7. O-O {[%clk 0:03:01.1]} 7... Bg7 {[%clk 0:03:06.8]} 8. Be3 {[%clk 0:03:01.7]}
8... O-O {[%clk 0:03:07.5]} 9. f4 {[%clk 0:03:00.1]} 9... Qb6 {[%clk 0:03:06.7]}
10. Qd3 {[%clk 0:02:14.7]} 10... Ng4 {[%clk 0:02:47.3]} 11. Nd5 {[%clk
0:01:37.4]} 11... Bxd4 {[%clk 0:02:42.6]} 12. Nxb6 {[%clk 0:01:34]} 12... Bxe3+
{[%clk 0:02:43.2]} 13. Kh1 {[%clk 0:01:35.1]} 13... Bxb6 {[%clk 0:02:44.4]} 14.
Bxg4 {[%clk 0:01:35.5]} 14... Bxg4 {[%clk 0:02:46.3]} 15. f5 {[%clk 0:01:35.6]}
15... Ne5 {[%clk 0:02:46.3]} 16. Qg3 {[%clk 0:01:33.8]} 16... Rac8 {[%clk
0:02:41.2]} 17. c3 {[%clk 0:01:34.3]} 17... Be2 {[%clk 0:02:38.9]} 18. Rf4
{[%clk 0:01:24.8]} 18... Nd3 {[%clk 0:02:36.2]} 19. f6 {[%clk 0:01:12.9]} 19...
Nxf4 {[%clk 0:02:29.6]} 20. fxe7 {[%clk 0:01:11.3]} 20... Rfe8 {[%clk
0:02:30.8]} 21. Qxf4 {[%clk 0:01:12.2]} 21... Rxe7 {[%clk 0:02:32.3]} 22. Qxd6
{[%clk 0:01:10.1]} 22... Rxe4 {[%clk 0:02:32.7]} 23. h3 {[%clk 0:00:50.9]} 23...
Rce8 {[%clk 0:02:31.9]} 24. Qd7 {[%clk 0:00:41.9]} 24... Ba6 {[%clk 0:02:31.1]}
25. Rd1 {[%clk 0:00:38.7]} 25... Re1+ {[%clk 0:02:28.6]} 26. Rxe1 {[%clk
0:00:39.3]} 26... Rxe1+ {[%clk 0:02:30.5]} 27. Kh2 {[%clk 0:00:40.5]} 27... Kg7
{[%clk 0:02:23.6]} 28. a4 {[%clk 0:00:36.4]} 28... h5 {[%clk 0:02:17.6]} 29. a5
{[%clk 0:00:24.8]} 29... Bg1+ {[%clk 0:02:08.8]} 30. Kg3 {[%clk 0:00:25.2]}
30... Re3+ {[%clk 0:02:08.8]} 31. Kf4 {[%clk 0:00:20.2]} 31... Re2 {[%clk
0:02:09.5]} 32. g4 {[%clk 0:00:15.1]} 32... hxg4 {[%clk 0:02:10.1]} 33. hxg4
{[%clk 0:00:15.8]} 33... Rxb2 {[%clk 0:02:11]} 34. g5 {[%clk 0:00:15.5]} 34...
Rf2+ {[%clk 0:02:11]} 35. Kg3 {[%clk 0:00:16.1]} 35... Rf5 {[%clk 0:02:12]} 36.
Kh4 {[%clk 0:00:15]} 36... Bf2+ {[%clk 0:02:12]} 37. Kh3 {[%clk 0:00:15.9]}
37... Rxg5 {[%clk 0:02:11.4]} 38. Qe7 {[%clk 0:00:17.3]} 38... Bf1+ {[%clk
0:02:05.7]} 39. Kh2 {[%clk 0:00:18.3]} 39... Rh5+ {[%clk 0:02:07.3]} 0-1

[Event "*** Titled Tuesday Blitz"]
[Site "Chess.com"]
[Date "2018.12.04"]
[Round "2"]
[White "aquaticpineapples"]
[Black "lolo9292"]
[Result "1-0"]
[WhiteElo "2038"]
[BlackElo "2109"]
[TimeControl "180+2"]
[EndTime "13:20:51 PST"]
[Termination "aquaticpineapples won by checkmate"]

1. d4 {[%clk 0:03:01.9]} 1... Nf6 {[%clk 0:03:00.7]} 2. Nf3 {[%clk 0:03:02.5]}
2... e6 {[%clk 0:03:00.8]} 3. Nbd2 {[%clk 0:03:01.3]} 3... d5 {[%clk 0:03:01.4]}
4. e3 {[%clk 0:03:02.2]} 4... c5 {[%clk 0:03:01.3]} 5. b3 {[%clk 0:03:02.8]}
5... Nc6 {[%clk 0:03:02.6]} 6. a3 {[%clk 0:03:03.7]} 6... cxd4 {[%clk
0:03:04.5]} 7. exd4 {[%clk 0:03:04.7]} 7... Bd6 {[%clk 0:03:06.4]} 8. Bb2 {[%clk
0:03:05.7]} 8... Qc7 {[%clk 0:03:06.9]} 9. Bd3 {[%clk 0:03:06.3]} 9... O-O
{[%clk 0:03:06.7]} 10. O-O {[%clk 0:03:06.8]} 10... Ng4 {[%clk 0:03:06.7]} 11.
h3 {[%clk 0:03:05.9]} 11... Nh2 {[%clk 0:03:06.9]} 12. Nxh2 {[%clk 0:02:52.8]}
12... Bxh2+ {[%clk 0:03:08.8]} 13. Kh1 {[%clk 0:02:54]} 13... Bf4 {[%clk
0:03:08.5]} 14. Nf3 {[%clk 0:02:41.4]} 14... f6 {[%clk 0:03:09]} 15. c4 {[%clk
0:02:38]} 15... dxc4 {[%clk 0:03:08.9]} 16. Bxc4 {[%clk 0:02:37.5]} 16... Kh8
{[%clk 0:02:54.2]} 17. Re1 {[%clk 0:02:32.1]} 17... e5 {[%clk 0:02:48.3]} 18. d5
{[%clk 0:02:32.8]} 18... Nb8 {[%clk 0:02:47.4]} 19. d6 {[%clk 0:02:27.5]} 19...
Qd8 {[%clk 0:02:47.6]} 20. a4 {[%clk 0:02:26]} 20... Nc6 {[%clk 0:02:47.6]} 21.
Ba3 {[%clk 0:02:19.8]} 21... Bd7 {[%clk 0:02:47.6]} 22. Qd5 {[%clk 0:02:17.4]}
22... Qc8 {[%clk 0:02:48.6]} 23. b4 {[%clk 0:01:59.3]} 23... Bxh3 {[%clk
0:02:46.2]} 24. gxh3 {[%clk 0:02:00.5]} 24... Qxh3+ {[%clk 0:02:46.5]} 25. Kg1
{[%clk 0:02:01.7]} 25... Qg4+ {[%clk 0:02:47.3]} 26. Kf1 {[%clk 0:02:02.1]}
26... Qh3+ {[%clk 0:02:47.1]} 27. Ke2 {[%clk 0:01:50.3]} 27... e4 {[%clk
0:02:47.4]} 28. Nd4 {[%clk 0:01:33.4]} 28... Nxd4+ {[%clk 0:02:48]} 29. Qxd4
{[%clk 0:01:33.7]} 29... Qf3+ {[%clk 0:02:49.9]} 30. Kf1 {[%clk 0:01:32.4]}
30... Qh1+ {[%clk 0:02:50.2]} 31. Ke2 {[%clk 0:01:33.3]} 31... Qf3+ {[%clk
0:02:52]} 32. Kf1 {[%clk 0:01:32.9]} 32... h5 {[%clk 0:02:50.9]} 33. Qxe4 {[%clk
0:01:13.6]} 33... Qh3+ {[%clk 0:02:47.6]} 34. Qg2 {[%clk 0:01:13.9]} 34... Qxg2+
{[%clk 0:02:48.7]} 35. Kxg2 {[%clk 0:01:15.8]} 35... Bxd6 {[%clk 0:02:49.7]} 36.
Rad1 {[%clk 0:01:15]} 36... Be5 {[%clk 0:02:50.7]} 37. Rd7 {[%clk 0:01:13.2]}
37... Rfd8 {[%clk 0:02:51.9]} 38. Red1 {[%clk 0:01:13.4]} 38... Rxd7 {[%clk
0:02:52.3]} 39. Rxd7 {[%clk 0:01:15.3]} 39... Rc8 {[%clk 0:02:53.3]} 40. Bf7
{[%clk 0:01:13.4]} 40... h4 {[%clk 0:02:52.4]} 41. Rxb7 {[%clk 0:01:12.8]} 41...
h3+ {[%clk 0:02:52.3]} 42. Kf1 {[%clk 0:01:03.6]} 42... h2 {[%clk 0:02:51.8]}
43. Bd5 {[%clk 0:01:04.4]} 43... Rd8 {[%clk 0:02:51.1]} 44. Bf3 {[%clk
0:01:04.3]} 44... Rd1+ {[%clk 0:02:49.4]} 45. Ke2 {[%clk 0:01:01.9]} 45... h1=Q
{[%clk 0:02:50.3]} 46. Bxh1 {[%clk 0:01:02]} 46... Rxh1 {[%clk 0:02:52.2]} 47.
Rxa7 {[%clk 0:01:02.3]} 47... Ra1 {[%clk 0:02:53.4]} 48. Ra8+ {[%clk 0:00:56.8]}
48... Kh7 {[%clk 0:02:52.8]} 49. b5 {[%clk 0:00:55.2]} 49... Rxa3 {[%clk
0:02:54]} 50. b6 {[%clk 0:00:56.6]} 50... Bd4 {[%clk 0:02:53.4]} 51. b7 {[%clk
0:00:57.4]} 51... Be5 {[%clk 0:02:54.8]} 52. a5 {[%clk 0:00:54.3]} 52... f5
{[%clk 0:02:55.6]} 53. a6 {[%clk 0:00:55.4]} 53... f4 {[%clk 0:02:57.5]} 54. a7
{[%clk 0:00:55.8]} 54... f3+ {[%clk 0:02:59.4]} 55. Kd1 {[%clk 0:00:56.7]} 55...
Ra1+ {[%clk 0:03:00.1]} 56. Kc2 {[%clk 0:00:57.9]} 56... Ra2+ {[%clk 0:03:00]}
57. Kd3 {[%clk 0:00:57.3]} 57... Rxf2 {[%clk 0:03:00.6]} 58. b8=Q {[%clk
0:00:58.2]} 58... Re2 {[%clk 0:03:01.2]} 59. Qb7 {[%clk 0:00:54.4]} 59... Rf2
{[%clk 0:02:59]} 60. Qe4+ {[%clk 0:00:54.8]} 60... g6 {[%clk 0:02:59.7]} 61. Re8
{[%clk 0:00:53.8]} 61... Bg7 {[%clk 0:02:59.9]} 62. a8=Q {[%clk 0:00:53.8]}
62... Rf1 {[%clk 0:02:57.8]} 63. Qh4+ {[%clk 0:00:54.6]} 63... Bh6 {[%clk
0:02:58.2]} 64. Rh8+ {[%clk 0:00:55.9]} 64... Kg7 {[%clk 0:02:59.2]} 65. Qf8#
{[%clk 0:00:57.2]} 1-0

[Event "*** Titled Tuesday Blitz"]
[Site "Chess.com"]
[Date "2018.12.04"]
[Round "2"]
[White "x-3738459472"]
[Black "dmosesov"]
[Result "0-1"]
[WhiteElo "2539"]
[BlackElo "2348"]
[TimeControl "180+2"]
[EndTime "13:20:55 PST"]
[Termination "dmosesov won by resignation"]

1. e4 {[%clk 0:03:01.9]} 1... c5 {[%clk 0:03:00.7]} 2. Nc3 {[%clk 0:03:02.7]}
2... a6 {[%clk 0:03:01.4]} 3. Bc4 {[%clk 0:03:02.5]} 3... e6 {[%clk 0:03:00.5]}
4. a4 {[%clk 0:03:02.5]} 4... Nc6 {[%clk 0:02:59.8]} 5. Nf3 {[%clk 0:03:03.2]}
5... Nf6 {[%clk 0:03:00.6]} 6. O-O {[%clk 0:03:01.7]} 6... d5 {[%clk 0:03:01.7]}
7. exd5 {[%clk 0:03:02.9]} 7... exd5 {[%clk 0:03:03.6]} 8. Ba2 {[%clk
0:03:04.3]} 8... Bg4 {[%clk 0:02:55.1]} 9. h3 {[%clk 0:03:04.2]} 9... Bh5 {[%clk
0:02:56]} 10. d3 {[%clk 0:02:55.4]} 10... h6 {[%clk 0:02:46.3]} 11. g4 {[%clk
0:02:49.4]} 11... Bg6 {[%clk 0:02:45.9]} 12. Re1+ {[%clk 0:02:34.8]} 12... Be7
{[%clk 0:02:45.8]} 13. Ne5 {[%clk 0:02:36.4]} 13... O-O {[%clk 0:02:22.7]} 14.
Nxg6 {[%clk 0:02:35.7]} 14... fxg6 {[%clk 0:02:24.4]} 15. Bf4 {[%clk 0:02:34.6]}
15... Kh7 {[%clk 0:02:19.9]} 16. Bg3 {[%clk 0:02:29]} 16... Bd6 {[%clk
0:02:13.5]} 17. Re6 {[%clk 0:02:17]} 17... Bxg3 {[%clk 0:02:08.8]} 18. fxg3
{[%clk 0:02:18.9]} 18... Nd4 {[%clk 0:02:10.2]} 19. Re3 {[%clk 0:02:04.2]} 19...
Qd6 {[%clk 0:02:03.5]} 20. Kg2 {[%clk 0:01:52.5]} 20... Rae8 {[%clk 0:01:57.9]}
21. Rxe8 {[%clk 0:01:52]} 21... Rxe8 {[%clk 0:01:59.8]} 22. Qd2 {[%clk
0:01:53.1]} 22... b5 {[%clk 0:01:22.5]} 23. axb5 {[%clk 0:01:37.4]} 23... axb5
{[%clk 0:01:24.4]} 24. Qf4 {[%clk 0:01:34.1]} 24... Qc6 {[%clk 0:00:54.4]} 25.
Rf1 {[%clk 0:01:23.9]} 25... Nxc2 {[%clk 0:00:50.4]} 26. g5 {[%clk 0:01:23]}
26... hxg5 {[%clk 0:00:46.9]} 27. Qxg5 {[%clk 0:01:21.4]} 27... Ne3+ {[%clk
0:00:44.4]} 28. Kg1 {[%clk 0:01:22.3]} 28... Nxf1 {[%clk 0:00:43.8]} 29. Nxd5
{[%clk 0:01:23.4]} 29... Nxd5 {[%clk 0:00:34.2]} 30. Bxd5 {[%clk 0:01:21.6]}
30... Qf6 {[%clk 0:00:33.3]} 31. Qxf6 {[%clk 0:01:16]} 31... gxf6 {[%clk
0:00:35.2]} 32. Kh1 {[%clk 0:01:14.5]} 32... Nxg3+ {[%clk 0:00:35]} 0-1

[Event "*** Titled Tuesday Blitz"]
[Site "Chess.com"]
[Date "2018.12.04"]
[Round "2"]
[White "MateusViageiro"]
[Black "PawnEatingZombie"]
[Result "1/2-1/2"]
[WhiteElo "2203"]
[BlackElo "2223"]
[TimeControl "180+2"]
[EndTime "13:20:57 PST"]
[Termination "Game drawn by agreement"]

1. e3 {[%clk 0:03:01.9]} 1... g6 {[%clk 0:02:59.7]} 2. Nf3 {[%clk 0:03:01.7]}
2... Bg7 {[%clk 0:03:01.1]} 3. c4 {[%clk 0:03:02.4]} 3... Nf6 {[%clk 0:03:00.6]}
4. Nc3 {[%clk 0:03:03.6]} 4... O-O {[%clk 0:03:01.7]} 5. d4 {[%clk 0:03:03.6]}
5... d5 {[%clk 0:03:02.7]} 6. Bd3 {[%clk 0:03:02.3]} 6... c5 {[%clk 0:03:03]} 7.
O-O {[%clk 0:02:59.3]} 7... cxd4 {[%clk 0:03:03.4]} 8. exd4 {[%clk 0:02:57.1]}
8... Nc6 {[%clk 0:03:02.8]} 9. h3 {[%clk 0:02:54.7]} 9... b6 {[%clk 0:03:00.2]}
10. a3 {[%clk 0:02:54.8]} 10... dxc4 {[%clk 0:02:58.6]} 11. Bxc4 {[%clk
0:02:55.3]} 11... Na5 {[%clk 0:03:00]} 12. Ba2 {[%clk 0:02:55.5]} 12... Bb7
{[%clk 0:03:01.4]} 13. Ne5 {[%clk 0:02:53.4]} 13... Rc8 {[%clk 0:03:00.7]} 14.
Re1 {[%clk 0:02:49.9]} 14... Nd5 {[%clk 0:02:46.7]} 15. Bd2 {[%clk 0:02:42.2]}
15... Nxc3 {[%clk 0:02:20.3]} 16. Bxc3 {[%clk 0:02:31.4]} 16... Nc6 {[%clk
0:02:17.5]} 17. Nxc6 {[%clk 0:02:08.4]} 17... Bxc6 {[%clk 0:02:16.1]} 18. d5
{[%clk 0:02:08.9]} 18... Bxc3 {[%clk 0:02:09.7]} 19. bxc3 {[%clk 0:02:09]} 19...
Bb7 {[%clk 0:01:56.1]} 20. Rc1 {[%clk 0:02:03.8]} 20... Qd6 {[%clk 0:01:55.2]}
21. Qb3 {[%clk 0:01:52.1]} 21... Rfe8 {[%clk 0:01:40.7]} 22. c4 {[%clk
0:01:48.5]} 22... Rc7 {[%clk 0:01:29.5]} 23. Qb4 {[%clk 0:01:47.5]} 23... Rec8
{[%clk 0:01:28.5]} 24. Rcd1 {[%clk 0:01:44.4]} 24... Ba6 {[%clk 0:01:26.4]} 25.
Rd4 {[%clk 0:01:26.2]} 25... Qxb4 {[%clk 0:01:06.5]} 26. axb4 {[%clk 0:01:24.4]}
26... Bxc4 {[%clk 0:01:08]} 27. Bxc4 {[%clk 0:01:17.7]} 27... Rxc4 {[%clk
0:01:09.9]} 28. Rxc4 {[%clk 0:01:12.5]} 28... Rxc4 {[%clk 0:01:11.4]} 29. Rxe7
{[%clk 0:01:13.3]} 29... Rc1+ {[%clk 0:01:12.5]} 30. Kh2 {[%clk 0:01:13.8]}
30... Rd1 {[%clk 0:01:14.1]} 31. Rd7 {[%clk 0:01:08.8]} 31... Kf8 {[%clk
0:01:12.2]} 32. d6 {[%clk 0:01:03.3]} 32... a5 {[%clk 0:01:10.3]} 33. bxa5
{[%clk 0:01:02]} 33... bxa5 {[%clk 0:01:10.6]} 34. Rd8+ {[%clk 0:01:03.1]} 34...
Kg7 {[%clk 0:01:10.9]} 35. Kg3 {[%clk 0:01:04.4]} 35... Kf6 {[%clk 0:01:10.7]}
36. Ra8 {[%clk 0:00:54.7]} 36... Rxd6 {[%clk 0:01:08.7]} 37. Rxa5 {[%clk
0:00:54.6]} 37... h5 {[%clk 0:01:10.1]} 1/2-1/2

[Event "*** Titled Tuesday Blitz"]
[Site "Chess.com"]
[Date "2018.12.04"]
[Round "2"]
[White "TheRigos"]
[Black "DiogenesSinopeus"]
[Result "1-0"]
[WhiteElo "2404"]
[BlackElo "2422"]
[TimeControl "180+2"]
[EndTime "13:21:04 PST"]
[Termination "TheRigos won by resignation"]

1. e4 {[%clk 0:03:01.9]} 1... e5 {[%clk 0:03:01.2]} 2. f4 {[%clk 0:03:02.9]}
2... Bc5 {[%clk 0:03:01.6]} 3. Nf3 {[%clk 0:03:03.8]} 3... d6 {[%clk 0:03:02.5]}
4. c3 {[%clk 0:03:03.9]} 4... Bb6 {[%clk 0:03:00.2]} 5. d4 {[%clk 0:03:04.2]}
5... exd4 {[%clk 0:03:02.1]} 6. cxd4 {[%clk 0:03:05.4]} 6... Bg4 {[%clk
0:03:03.7]} 7. Nc3 {[%clk 0:02:53.6]} 7... Nc6 {[%clk 0:02:45.7]} 8. d5 {[%clk
0:02:47]} 8... Nd4 {[%clk 0:02:43.6]} 9. Qa4+ {[%clk 0:02:47.6]} 9... Bd7 {[%clk
0:02:31.4]} 10. Qd1 {[%clk 0:02:48.3]} 10... Nxf3+ {[%clk 0:02:24.1]} 11. Qxf3
{[%clk 0:02:49.3]} 11... Nf6 {[%clk 0:02:22.5]} 12. h3 {[%clk 0:02:39.1]} 12...
Qe7 {[%clk 0:02:13]} 13. Bd3 {[%clk 0:02:40.1]} 13... O-O-O {[%clk 0:01:53.6]}
14. Bd2 {[%clk 0:02:40.8]} 14... Rhe8 {[%clk 0:01:49.9]} 15. O-O-O {[%clk
0:02:41.7]} 15... Kb8 {[%clk 0:01:38.5]} 16. Rhe1 {[%clk 0:02:42.6]} 16... Bd4
{[%clk 0:01:12.3]} 17. g4 {[%clk 0:02:28.2]} 17... Bc8 {[%clk 0:01:06.3]} 18.
Kb1 {[%clk 0:02:25.5]} 18... a6 {[%clk 0:01:02.9]} 19. Be3 {[%clk 0:02:00]}
19... Bxe3 {[%clk 0:01:01.6]} 20. Rxe3 {[%clk 0:01:57]} 20... Nd7 {[%clk
0:01:03.5]} 21. Rde1 {[%clk 0:01:56.4]} 21... f6 {[%clk 0:01:04.7]} 22. Qd1
{[%clk 0:01:46.7]} 22... g5 {[%clk 0:01:01.4]} 23. fxg5 {[%clk 0:01:39.2]} 23...
fxg5 {[%clk 0:01:02.3]} 24. Qb3 {[%clk 0:01:20.3]} 24... Rf8 {[%clk 0:01:03.5]}
25. Na4 {[%clk 0:01:18.5]} 25... Ka7 {[%clk 0:00:54.2]} 26. Rc1 {[%clk
0:01:19.4]} 26... Ne5 {[%clk 0:00:45]} 27. Be2 {[%clk 0:01:17.2]} 27... Rf2
{[%clk 0:00:33.5]} 28. Rec3 {[%clk 0:01:14.6]} 28... Rxe2 {[%clk 0:00:04]} 29.
Rxc7 {[%clk 0:01:14.9]} 29... Rd7 {[%clk 0:00:03.4]} 30. Qb6+ {[%clk 0:01:14.8]}
1-0

[Event "*** Titled Tuesday Blitz"]
[Site "Chess.com"]
[Date "2018.12.04"]
[Round "2"]
[White "dretch"]
[Black "vpantev"]
[Result "1-0"]
[WhiteElo "2810"]
[BlackElo "2637"]
[TimeControl "180+2"]
[EndTime "13:21:08 PST"]
[Termination "dretch won by resignation"]

1. d4 {[%clk 0:03:01.9]} 1... Nf6 {[%clk 0:03:00.5]} 2. c4 {[%clk 0:03:02.8]}
2... e6 {[%clk 0:03:01.7]} 3. Nc3 {[%clk 0:03:03.5]} 3... Bb4 {[%clk 0:03:02.6]}
4. Qc2 {[%clk 0:03:04.8]} 4... O-O {[%clk 0:03:03.1]} 5. e4 {[%clk 0:03:06.1]}
5... d6 {[%clk 0:03:01.9]} 6. a3 {[%clk 0:03:06.5]} 6... Bxc3+ {[%clk
0:03:02.6]} 7. bxc3 {[%clk 0:03:08.4]} 7... e5 {[%clk 0:03:01.3]} 8. Bd3 {[%clk
0:03:09.3]} 8... Re8 {[%clk 0:03:02]} 9. Ne2 {[%clk 0:03:10.4]} 9... b6 {[%clk
0:02:53.4]} 10. O-O {[%clk 0:03:10.6]} 10... Bb7 {[%clk 0:02:53.9]} 11. Ng3
{[%clk 0:03:06.6]} 11... Nc6 {[%clk 0:02:51.5]} 12. f4 {[%clk 0:03:07.8]} 12...
exd4 {[%clk 0:02:51]} 13. Bb2 {[%clk 0:03:09.1]} 13... dxc3 {[%clk 0:02:10.2]}
14. Bxc3 {[%clk 0:03:09.4]} 14... Bc8 {[%clk 0:02:11.3]} 15. h3 {[%clk
0:02:32.9]} 15... h6 {[%clk 0:02:09.3]} 16. Rad1 {[%clk 0:02:32.5]} 16... Bd7
{[%clk 0:02:10.1]} 17. Qb2 {[%clk 0:02:22.8]} 17... Qe7 {[%clk 0:01:56.9]} 18.
Rde1 {[%clk 0:02:21.5]} 18... Be6 {[%clk 0:01:45.9]} 19. Kh1 {[%clk 0:01:59.3]}
19... a6 {[%clk 0:01:40.3]} 20. Nf5 {[%clk 0:01:32.4]} 20... Bxf5 {[%clk
0:01:27.6]} 21. exf5 {[%clk 0:01:34.3]} 21... Qf8 {[%clk 0:01:24.8]} 22. Bxf6
{[%clk 0:01:33.7]} 22... gxf6 {[%clk 0:01:25.7]} 23. Be4 {[%clk 0:01:30.6]}
23... Na5 {[%clk 0:01:00.9]} 24. Bxa8 {[%clk 0:01:28.3]} 24... Rxa8 {[%clk
0:01:01.7]} 25. Rf3 {[%clk 0:01:08.4]} 25... Qd8 {[%clk 0:00:41.1]} 26. Re4
{[%clk 0:01:01.2]} 26... Kh7 {[%clk 0:00:35.9]} 27. Qe2 {[%clk 0:00:58]} 27...
d5 {[%clk 0:00:32.4]} 28. Re7 {[%clk 0:00:55]} 28... Qf8 {[%clk 0:00:27.6]} 29.
Qe6 {[%clk 0:00:51.5]} 1-0